fUSD/lending_fUSD_20250423
["ID","MTS","AMOUNT","RATE_DAILY","PERIOD"]
[358794348,1745436200239,-2271.32919163,0.00019986,2]
[358794349,1745436200260,-172.60471632,0.00019986,2]
[358794350,1745436200281,-430.76592964,0.00019986,2]
[358794351,1745436200303,-270.55014757,0.00019999,2]
[358794352,1745436200325,-6854.75001484,0.0002,2]
[358794353,1745436200737,-10000.0,0.0002,2]
[358794354,1745436201206,-10000.0,0.0002,2]
[358794355,1745436202580,-10000.0,0.0002,2]
[358794356,1745436202991,-10000.0,0.0002,2]
[358794357,1745436203483,-10000.0,0.0002,2]
[358794358,1745436204008,-10000.0,0.0002,2]
[358794359,1745436204218,-10000.0,0.0002,2]
[358794360,1745436204805,-10000.0,0.0002,2]
[358794361,1745436205003,-10000.0,0.0002,2]
[358794362,1745436205571,-10000.0,0.0002,2]
[358794363,1745436206104,-10000.0,0.0002,2]
[358794364,1745436206745,-10000.0,0.0002,2]
[358794365,1745436207331,-10000.0,0.0002,2]
[358794366,1745436207698,-10000.0,0.0002,2]
[358794367,1745436208604,-10000.0,0.0002,2]
[358794368,1745436209372,-10000.0,0.0002,2]
[358794369,1745436209661,-10000.0,0.0002,2]
[358794370,1745436210172,-10000.0,0.0002,2]
[358794371,1745436211007,-10000.0,0.0002,2]
[358794372,1745436211504,-10000.0,0.0002,2]
[358794373,1745436211996,-10000.0,0.0002,2]
[358794374,1745436212433,-10000.0,0.0002,2]
[358794375,1745436213551,-10000.0,0.0002,2]
[358794376,1745436213664,-10000.0,0.0002,2]
[358794377,1745436214023,-10000.0,0.0002,2]
[358794378,1745436214295,-10000.0,0.0002,2]
[358794379,1745436214624,-10000.0,0.0002,2]
[358794380,1745436214948,-10000.0,0.0002,2]
[358794381,1745436215341,-10000.0,0.0002,2]
[358794382,1745436216368,-10000.0,0.0002,2]
[358794383,1745436217099,-10000.0,0.0002,2]
[358794384,1745436217975,-10000.0,0.0002,2]
[358794385,1745436218927,4206.0,0.00037808,60]
[358794386,1745436219679,-10000.0,0.0002,2]
[358794387,1745436233097,-5425.0,0.0002,2]
[358794388,1745436241601,426.56066801,0.00037808,60]
[358794389,1745436272195,150.0,0.00018976,2]
[358794390,1745436272368,150.0,0.00018885,2]
[358794391,1745436272503,150.0,0.00018812,2]
[358794392,1745436272592,150.0,0.00014941,2]
[358794393,1745436272643,1000.0,0.00014871,2]
[358794394,1745436311331,6236.21,0.000154,2]
[358794395,1745436347829,200.0,0.00018941,2]
[358794396,1745436444845,300.0,0.000192,7]
[358794397,1745436447048,600.0,0.000193,7]
[358794398,1745436449895,900.0,0.000194,7]
[358794399,1745436451179,1200.0,0.000195,7]
[358794400,1745436453312,1500.0,0.000196,7]
[358794401,1745436455421,300.0,0.000197,7]
[358794402,1745436457629,300.0,0.000198,7]
[358794403,1745436460242,300.0,0.000199,7]
[358794404,1745436519529,17440.15665805,0.000151,2]
[358794414,1745436590178,2000.0,0.00018814,2]
[358794415,1745436590200,2000.0,0.00018814,2]
[358794416,1745436590223,12000.0,0.00018814,2]
[358794441,1745436632643,-300.0,0.00019567,2]
[358794442,1745436632653,-900.0,0.00019567,2]
[358794443,1745436632664,-300.0,0.00019567,2]
[358794444,1745436632674,-200.0,0.00019568,2]
[358794445,1745436632686,-21605.5,0.00019568,2]
[358794446,1745436632782,-2294.5,0.00019568,2]
[358794447,1745436632792,-150.0,0.00019633,2]
[358794448,1745436632802,-1000.0,0.00019636,2]
[358794449,1745436632812,-250.0,0.00019641,2]
[358794450,1745436632822,-150.0,0.00019641,2]
[358794451,1745436632831,-150.0,0.00019642,2]
[358794452,1745436632841,-150.0,0.00019646,2]
[358794453,1745436632851,-150.0,0.00019649,2]
[358794454,1745436632860,-150.0,0.00019652,2]
[358794455,1745436632869,-150.0,0.00019662,2]
[358794456,1745436632880,-1000.0,0.00019664,2]
[358794457,1745436632890,-150.0,0.00019671,2]
[358794458,1745436632899,-261.71428702,0.00019672,2]
[358794459,1745436632909,-150.0,0.00019675,2]
[358794460,1745436632919,-150.0,0.00019678,2]
[358794461,1745436632928,-150.0,0.00019705,2]
[358794462,1745436632938,-150.0,0.00019719,2]
[358794463,1745436632947,-150.0,0.00019737,2]
[358794464,1745436632957,-76.74285541,0.00019739,2]
[358794465,1745436633059,-923.25714459,0.00019739,2]
[358794466,1745436633070,-11.07285541,0.00019741,2]
[358794467,1745436633083,-282.28620151,0.00019741,2]
[358794468,1745436633094,-150.0,0.00019745,2]
[358794469,1745436633104,-150.0,0.00019752,2]
[358794470,1745436633115,-150.0,0.00019752,2]
[358794471,1745436633126,-475.33027054,0.00019764,2]
[358794472,1745436633138,-319.0,0.00019764,2]
[358794475,1745436638385,-205.66972946,0.00019764,2]
[358794476,1745436638395,-150.0,0.00019768,2]
[358794477,1745436638404,-150.0,0.00019768,2]
[358794479,1745436638414,-150.0,0.00019772,2]
[358794481,1745436638424,-150.0,0.00019788,2]
[358794483,1745436638433,-150.0,0.00019793,2]
[358794485,1745436638443,-150.0,0.00019794,2]
[358794487,1745436638452,-150.0,0.00019797,2]
[358794489,1745436638462,-150.0,0.00019798,2]
[358794491,1745436638471,-150.0,0.00019807,2]
[358794493,1745436638481,-150.0,0.00019807,2]
[358794495,1745436638490,-150.0,0.0001981,2]
[358794497,1745436638500,-150.0,0.00019822,2]
[358794498,1745436638509,-150.0,0.00019824,2]
[358794499,1745436638518,-150.0,0.00019824,2]
[358794500,1745436638528,-5036.9102555,0.0001983,2]
[358794501,1745436638539,-11157.38489646,0.0001983,2]
[358794502,1745436638593,-1042.82955653,0.0001983,2]
[358794503,1745436638605,-2430.86387076,0.0001983,2]
[358794504,1745436638617,-5957.90000264,0.0001983,2]
[358794505,1745436638627,-150.0,0.00019831,2]
[358794506,1745436638636,-150.0,0.00019837,2]
[358794507,1745436638645,-2028.12,0.00019844,2]
[358794509,1745436638655,-150.0,0.00019846,2]
[358794511,1745436638664,-150.0,0.00019847,2]
[358794513,1745436638673,-150.0,0.00019857,2]
[358794515,1745436638682,-150.0,0.00019884,2]
[358794517,1745436638691,-6596.7554,0.00019886,2]
[358794519,1745436638701,-742.2629,0.00019886,2]
[358794521,1745436638710,-150.0,0.0001989,2]
[358794523,1745436638719,-150.0,0.00019891,2]
[358794525,1745436638728,-150.0,0.00019894,2]
[358794527,1745436638739,-955.13249295,0.000199,2]
[358794529,1745436638748,-1000.0,0.000199,2]
[358794531,1745436638758,-3553.24134177,0.000199,2]
[358794532,1745436638767,-339.5894644,0.000199,2]
[358794535,1745436638777,-13194.70973685,0.000199,2]
[358794537,1745436638787,-366.08158701,0.000199,2]
[358794539,1745436638797,-1465.79690221,0.000199,2]
[358794541,1745436638806,-150.0,0.00019903,2]
[358794542,1745436638815,-500.0,0.00019973,2]
[358794545,1745436638825,-22039.8952634,0.00019986,2]
[358794546,1745436638834,-6826.0397601,0.00019986,2]
[358794548,1745436638843,-150.0,0.00019999,2]
[358794550,1745436638853,-150.0,0.00019999,2]
[358794552,1745436638863,-150.0,0.00019999,2]
[358794554,1745436638872,-150.0,0.00019999,2]
[358794556,1745436638882,-150.0,0.00019999,2]
[358794558,1745436638892,-150.0,0.00019999,2]
[358794560,1745436638901,-150.0,0.00019999,2]
[358794562,1745436638911,-150.0,0.00019999,2]
[358794564,1745436638920,-150.0,0.00019999,2]
[358794566,1745436638930,-150.0,0.00019999,2]
[358794568,1745436638939,-150.0,0.00019999,2]
[358794570,1745436638949,-150.0,0.00019999,2]
[358794572,1745436638958,-150.0,0.00019999,2]
[358794574,1745436638967,-150.0,0.00019999,2]
[358794576,1745436638977,-150.0,0.00019999,2]
[358794578,1745436638988,-150.0,0.00019999,2]
[358794580,1745436638997,-150.0,0.00019999,2]
[358794582,1745436639007,-150.0,0.00019999,2]
[358794584,1745436639017,-150.0,0.00019999,2]
[358794586,1745436639026,-150.0,0.00019999,2]
[358794588,1745436639035,-150.0,0.00019999,2]
[358794590,1745436639044,-150.0,0.00019999,2]
[358794592,1745436639054,-150.0,0.00019999,2]
[358794594,1745436639063,-150.0,0.00019999,2]
[358794596,1745436639072,-150.0,0.00019999,2]
[358794598,1745436639083,-150.0,0.00019999,2]
[358794600,1745436639092,-150.0,0.00019999,2]
[358794602,1745436639101,-150.0,0.00019999,2]
[358794604,1745436639111,-150.0,0.00019999,2]
[358794606,1745436639120,-150.0,0.00019999,2]
[358794608,1745436639129,-237.02044004,0.00019999,2]
[358794610,1745436639140,-184.50029496,0.00019999,2]
[358794612,1745436639149,-243.72401227,0.00019999,2]
[358794614,1745436639159,-189.37715631,0.00019999,2]
[358794616,1745436639168,-1372442.72405579,0.0002,2]
[358794618,1745436639178,-1250.53208522,0.0002,2]
[358794620,1745436639187,-11831.15104412,0.0002,2]
[358794622,1745436639196,-1756.529642,0.0002,2]
[358794624,1745436639205,-79017.86945929,0.0002,2]
[358794626,1745436639215,-200.0,0.0002,2]
[358794628,1745436639224,-1000.0,0.0002,2]
[358794630,1745436639235,-1000.0,0.0002,2]
[358794632,1745436639244,-1000.0,0.0002,2]
[358794634,1745436639254,-1000.0,0.0002,2]
[358794636,1745436639263,-1000.0,0.0002,2]
[358794638,1745436639272,-1000.0,0.0002,2]
[358794640,1745436639282,-1000.0,0.0002,2]
[358794642,1745436639291,-1000.0,0.0002,2]
[358794644,1745436639301,-1000.0,0.0002,2]
[358794646,1745436639310,-1000.0,0.0002,2]
[358794648,1745436639319,-1000.0,0.0002,2]
[358794650,1745436639330,-1000.0,0.0002,2]
[358794652,1745436639339,-1000.0,0.0002,2]
[358794654,1745436639349,-1000.0,0.0002,2]
[358794656,1745436639359,-1000.0,0.0002,2]
[358794658,1745436639368,-1000.0,0.0002,2]
[358794660,1745436639378,-1000.0,0.0002,2]
[358794662,1745436639388,-1000.0,0.0002,2]
[358794664,1745436639397,-1000.0,0.0002,2]
[358794666,1745436639407,-1000.0,0.0002,2]
[358794668,1745436639416,-1000.0,0.0002,2]
[358794669,1745436639425,-1000.0,0.0002,2]
[358794671,1745436639435,-1000.0,0.0002,2]
[358794673,1745436639444,-1000.0,0.0002,2]
[358794675,1745436639453,-1000.0,0.0002,2]
[358794677,1745436639462,-1000.0,0.0002,2]
[358794679,1745436639472,-1000.0,0.0002,2]
[358794681,1745436639482,-1000.0,0.0002,2]
[358794683,1745436639492,-1000.0,0.0002,2]
[358794685,1745436639502,-1000.0,0.0002,2]
[358794687,1745436639512,-1000.0,0.0002,2]
[358794689,1745436639522,-1000.0,0.0002,2]
[358794691,1745436639531,-688.25330115,0.0002,2]
[358794693,1745436639541,-2006.459,0.0002,2]
[358794695,1745436639551,-200.0,0.0002,2]
[358794697,1745436639561,-2004208.26193505,0.0002,2]
[358794700,1745436639574,-2494318.525,0.0002,2]
[358794832,1745436640964,-1234.69500997,0.0002,2]
[358794842,1745436641048,-714.28,0.0002,2]
[358794990,1745436642635,-2812.23410513,0.0002,2]
[358795170,1745436644688,-930.12,0.0002,2]
[358795301,1745436646265,-145.05395972,0.0002,2]
[358795311,1745436646356,-3805.0229842,0.0002,2]
[358795313,1745436646368,-2497.64499973,0.0002,2]
[358795315,1745436646379,-1060.3040136,0.0002,2]
[358795331,1745436646523,-1862.0,0.0002,2]
[358795413,1745436692244,-150.0,0.00019575,2]
[358795414,1745436692269,-132.5606205,0.00019635,2]
[358795415,1745436722047,342.59,0.00037808,60]
[358795416,1745436792611,2000.0,0.00037808,60]
[358795417,1745436847423,250.0,0.00018814,2]
[358795418,1745436863491,1750.0,0.00016897,2]
[358795419,1745436863514,479.7,0.00016897,2]
[358795420,1745436865374,-152.0,0.00019161,2]
[358795421,1745436898971,1520.3,0.00018794,2]
[358795422,1745436898992,294.42,0.00018794,2]
[358795423,1745436900812,-296.41791632,0.00019161,2]
[358795424,1745436921350,150.0,0.00018795,2]
[358795425,1745436998579,250.0,0.00017,2]
[358795426,1745436999919,300.0,0.00019,2]
[358795427,1745437000368,-168.41690716,0.00019161,2]
[358795428,1745437004014,-152.0,0.00019161,2]
[358795429,1745437099902,500.0,0.00018794,7]
[358795430,1745437123826,-236.57687709,0.00019064,2]
[358795431,1745437161071,-807.84094591,0.00019064,2]
[358795432,1745437161095,-1460.86517652,0.00019161,2]
[358795433,1745437161118,-322.0648218,0.00019259,2]
[358795434,1745437161141,-166.66,0.00019359,2]
[358795435,1745437161166,-800.0,0.0001941,2]
[358795436,1745437161190,-800.0,0.00019494,2]
[358795437,1745437161217,-150.0,0.00019623,2]
[358795438,1745437161241,-150.0,0.00019628,2]
[358795439,1745437161265,-150.0,0.00019629,2]
[358795440,1745437161289,-150.0,0.0001963,2]
[358795441,1745437161314,-867.4393795,0.00019635,2]
[358795442,1745437161338,-150.0,0.00019637,2]
[358795443,1745437161363,-150.0,0.00019639,2]
[358795444,1745437161387,-150.0,0.00019642,2]
[358795445,1745437161413,-150.0,0.00019642,2]
[358795446,1745437161437,-150.0,0.00019649,2]
[358795447,1745437161485,1000.0,0.00018788,2]
[358795448,1745437174428,697.45,0.00037808,60]
[358795449,1745437191526,315.64,0.00018816,2]
[358795453,1745437308587,256.94,0.00037808,60]
[358795455,1745437335650,2028.12,0.00018823,2]
[358795456,1745437341728,81.36967627,0.00019283,2]
[358795457,1745437368077,256.97,0.0001882,2]
[358795458,1745437377429,200.0,0.0001882,2]
[358795459,1745437394713,-200.02343066,0.00019186,2]
[358795460,1745437418431,199.9,0.00018818,2]
[358795461,1745437536183,200.0,0.0001882,2]
[358795462,1745437557683,20000.0,0.00037,60]
[358795463,1745437587132,148.71,0.00018,2]
[358795464,1745437587154,2000.0,0.00018,2]
[358795465,1745437587176,2000.0,0.00018,2]
[358795466,1745437587199,2000.0,0.00018,2]
[358795467,1745437587220,2000.0,0.00018,2]
[358795468,1745437587241,2000.0,0.00018,2]
[358795469,1745437587264,352.20676865,0.00018,2]
[358795470,1745437587663,186.68,0.00015065,2]
[358795471,1745437587853,186.68,0.00018831,2]
[358795474,1745437767669,1274.43323135,0.00018843,2]
[358795475,1745437767690,2000.0,0.00018843,2]
[358795476,1745437767715,20625.56676865,0.00018843,2]
[358795477,1745437804671,151.042401,0.00037,120]
[358795485,1745437832352,-483.878466,0.00019241,2]
[358795486,1745437832363,-785.11980878,0.00019338,2]
[358795487,1745437832373,-428.52192394,0.00019356,2]
[358795488,1745437832383,-250.0,0.00019381,2]
[358795489,1745437832393,-785.11980878,0.00019456,2]
[358795490,1745437832403,-428.52192394,0.00019516,2]
[358795491,1745437832413,-150.0,0.00019616,2]
[358795492,1745437832423,-150.0,0.00019643,2]
[358795493,1745437832433,-150.0,0.00019655,2]
[358795494,1745437832443,-150.0,0.00019656,2]
[358795495,1745437832453,-533.32,0.00019656,2]
[358795496,1745437832463,-150.0,0.00019689,2]
[358795497,1745437832473,-150.0,0.00019698,2]
[358795498,1745437832483,-150.0,0.00019713,2]
[358795499,1745437832492,-150.0,0.00019718,2]
[358795501,1745437832502,-150.0,0.00019719,2]
[358795504,1745437832512,-150.0,0.00019727,2]
[358795506,1745437832522,-150.0,0.00019728,2]
[358795507,1745437832532,-150.0,0.00019729,2]
[358795509,1745437832542,-150.0,0.00019732,2]
[358795511,1745437832551,-150.0,0.00019733,2]
[358795512,1745437832561,-150.0,0.00019733,2]
[358795513,1745437832571,-1000.0,0.00019737,2]
[358795514,1745437832581,-150.0,0.0001974,2]
[358795515,1745437832590,-150.0,0.00019742,2]
[358795516,1745437832600,-150.0,0.00019744,2]
[358795517,1745437832610,-150.0,0.00019745,2]
[358795518,1745437832620,-300.0,0.00019751,2]
[358795519,1745437832630,-150.0,0.00019752,2]
[358795520,1745437832640,-900.0,0.00019752,2]
[358795521,1745437832649,-300.0,0.00019752,2]
[358795522,1745437832665,-140.81806856,0.00019765,2]
[358795527,1745437835995,157.042405,0.00037,120]
[358795535,1745437838423,-9.18193144,0.00019765,2]
[358795538,1745437838435,-150.0,0.0001977,2]
[358795540,1745437838446,-150.0,0.00019775,2]
[358795542,1745437838456,-163.28188616,0.00019775,2]
[358795544,1745437838466,-150.0,0.00019782,2]
[358795546,1745437838475,-150.0,0.00019796,2]
[358795548,1745437838485,-150.0,0.00019799,2]
[358795550,1745437838497,-150.0,0.00019806,2]
[358795552,1745437838508,-785.11980878,0.00019806,2]
[358795554,1745437838519,-150.0,0.00019814,2]
[358795556,1745437838530,-150.0,0.00019815,2]
[358795558,1745437838540,-150.0,0.0001982,2]
[358795560,1745437838549,-1000.0,0.00019823,2]
[358795561,1745437838559,-150.0,0.00019824,2]
[358795564,1745437838569,-150.0,0.00019832,2]
[358795566,1745437838579,-150.0,0.00019835,2]
[358795568,1745437838589,-150.0,0.0001984,2]
[358795570,1745437838598,-150.0,0.00019841,2]
[358795572,1745437838607,-150.0,0.00019842,2]
[358795574,1745437838617,-150.0,0.00019849,2]
[358795576,1745437838626,-150.0,0.0001985,2]
[358795578,1745437838636,-150.0,0.00019858,2]
[358795580,1745437838645,-315.64,0.00019861,2]
[358795582,1745437838655,-150.0,0.00019867,2]
[358795584,1745437838666,-150.0,0.00019868,2]
[358795586,1745437838675,-150.0,0.0001987,2]
[358795588,1745437838685,-150.0,0.00019872,2]
[358795590,1745437838694,-150.0,0.00019879,2]
[358795592,1745437838704,-150.0,0.00019879,2]
[358795594,1745437838715,-150.0,0.0001988,2]
[358795596,1745437838724,-150.0,0.00019881,2]
[358795598,1745437838734,-955.13249295,0.00019886,2]
[358795600,1745437838745,-6596.7554,0.00019886,2]
[358795602,1745437838755,-983.794,0.00019886,2]
[358795604,1745437838765,-742.2629,0.00019886,2]
[358795606,1745437838776,-955.13249292,0.00019888,2]
[358795608,1745437838785,-150.0,0.00019889,2]
[358795610,1745437838795,-150.0,0.00019889,2]
[358795612,1745437838805,-150.0,0.00019889,2]
[358795614,1745437838815,-150.0,0.0001989,2]
[358795616,1745437838825,-150.0,0.00019892,2]
[358795618,1745437838835,-150.0,0.00019895,2]
[358795620,1745437838846,-150.0,0.00019895,2]
[358795622,1745437838856,-1000.0,0.000199,2]
[358795624,1745437838866,-579.08132273,0.000199,2]
[358795627,1745437838876,-336.15126047,0.000199,2]
[358795629,1745437838886,-339.5894644,0.000199,2]
[358795631,1745437838896,-16346.36569457,0.000199,2]
[358795633,1745437838906,-150.0,0.00019901,2]
[358795635,1745437838916,-1000.0,0.00019911,2]
[358795637,1745437838925,-150.0,0.00019915,2]
[358795639,1745437838935,-150.0,0.00019917,2]
[358795641,1745437838945,-500.0,0.00019918,2]
[358795643,1745437838955,-150.0,0.00019929,2]
[358795645,1745437838969,-150.0,0.00019932,2]
[358795647,1745437838979,-150.0,0.00019933,2]
[358795649,1745437838988,-500.0,0.00019945,2]
[358795651,1745437838998,-150.0,0.00019952,2]
[358795653,1745437839009,-150.0,0.00019953,2]
[358795655,1745437839019,-150.0,0.00019968,2]
[358795657,1745437839029,-594.19862053,0.00019973,2]
[358795659,1745437839039,-500.0,0.00019973,2]
[358795661,1745437839049,-500.0,0.00019973,2]
[358795663,1745437839058,-150.0,0.00019975,2]
[358795665,1745437839068,-150.0,0.00019979,2]
[358795667,1745437839078,-150.0,0.00019982,2]
[358795669,1745437839087,-636.06679723,0.00019985,2]
[358795671,1745437839097,-286.28651251,0.00019985,2]
[358795673,1745437839109,-250.0,0.00019986,2]
[358795676,1745437839122,-1588.8044709,0.00019986,2]
[358795678,1745437839132,-131626.2578037,0.00019986,2]
[358795680,1745437839142,-5677.2894548,0.00019986,2]
[358795682,1745437839152,-4173.0242272,0.00019986,2]
[358795684,1745437839161,-150.0,0.00019986,2]
[358795686,1745437839170,-1013.8641732,0.00019986,2]
[358795688,1745437839180,-2167.2752239,0.00019986,2]
[358795690,1745437839192,-817.1159145,0.00019986,2]
[358795692,1745437839201,-672.1979492,0.00019986,2]
[358795694,1745437839211,-272.39821697,0.00019986,2]
[358795696,1745437839220,-1000.0,0.00019995,2]
[358795698,1745437839231,-166.66,0.00019998,2]
[358795699,1745437839240,-300.0,0.00019999,2]
[358795701,1745437839250,-150.0,0.00019999,2]
[358795703,1745437839260,-150.0,0.00019999,2]
[358795705,1745437839269,-150.0,0.00019999,2]
[358795707,1745437839279,-150.0,0.00019999,2]
[358795709,1745437839288,-150.0,0.00019999,2]
[358795710,1745437839298,-150.0,0.00019999,2]
[358795711,1745437839307,-150.0,0.00019999,2]
[358795712,1745437839316,-150.0,0.00019999,2]
[358795713,1745437839326,-150.0,0.00019999,2]
[358795714,1745437839335,-150.0,0.00019999,2]
[358795715,1745437839344,-150.0,0.00019999,2]
[358795716,1745437839354,-150.0,0.00019999,2]
[358795717,1745437839364,-150.0,0.00019999,2]
[358795718,1745437839375,-150.0,0.00019999,2]
[358795720,1745437839385,-150.0,0.00019999,2]
[358795722,1745437839395,-150.0,0.00019999,2]
[358795724,1745437839405,-150.0,0.00019999,2]
[358795726,1745437839414,-150.0,0.00019999,2]
[358795728,1745437839424,-150.0,0.00019999,2]
[358795730,1745437839434,-150.0,0.00019999,2]
[358795732,1745437839443,-150.0,0.00019999,2]
[358795734,1745437839453,-1767.0,0.0002,2]
[358795736,1745437839463,-270254.13873186,0.0002,2]
[358795738,1745437839473,-2732.13981512,0.0002,2]
[358795740,1745437839483,-3107869.72071149,0.0002,2]
[358795743,1745437839497,-2494318.525,0.0002,2]
[358795804,1745437840561,-43769.75222149,0.0002,2]
[358795807,1745437840575,-5927.21877198,0.0002,2]
[358795809,1745437840586,-622.96999999,0.0002,2]
[358795821,1745437840701,-0.00743218,0.0002,2]
[358796049,1745437846388,-785.11980879,0.00019833,2]
[358796050,1745437846399,-955.13249292,0.00019889,2]
[358796051,1745437846408,-92540.541131,0.0002,2]
[358796052,1745437846435,-7816.5912869,0.0002,2]
[358796193,1745437898253,157.042405,0.00037,120]
[358796194,1745437915646,157.042405,0.00037,120]
[358796195,1745437956972,167.655676,0.00035626,60]
[358796196,1745437957224,167.655676,0.00033798,60]
[358796197,1745438151103,-291.62270811,0.00018994,2]
[358796198,1745438361988,159.06208761,0.00018961,2]
[358796199,1745438370309,500.0,0.00018848,7]
[358796200,1745438409308,200.0,0.00018842,2]
[358796201,1745438423902,252.51,0.0001884,2]
[358796203,1745438461224,192.7,0.00037808,60]
[358796204,1745438475555,700.0,0.00016918,2]
[358796205,1745438475578,1350.8,0.00016918,2]
[358796206,1745438477637,-295.60619598,0.00018994,2]
[358796207,1745438555997,250.0,0.00018829,2]
[358796208,1745438557021,-159.075377,0.00018994,2]
[358796209,1745438576469,192.71,0.00037808,60]
[358796211,1745438610375,150.0,0.00018827,2]
[358796212,1745438610399,864.06,0.00018827,2]
[358796213,1745438610908,-253.69571891,0.00018994,2]
[358796214,1745438610932,-18.73761985,0.00019061,2]
[358796216,1745438643648,-178.5515,0.00019061,2]
[358796222,1745438682816,186.68,0.00015065,2]
[358796223,1745438683092,-2.71088015,0.00019061,2]
[358796224,1745438683115,-170.19539122,0.00019121,2]
[358796231,1745438789919,23900.0,0.00018817,2]
[358796232,1745438826481,-79.80460878,0.00019121,2]
[358796233,1745438826506,-106.70169733,0.0001917,2]
[358796234,1745438830478,250.0,0.00017,2]
[358796235,1745438835288,-150.98483876,0.00019,2]
[358796243,1745439013400,849.25296408,0.0003127,120]
[358796244,1745439016690,486.68,0.00018818,2]
[358796245,1745439017143,-149.01516124,0.00019,2]
[358796246,1745439017167,-39.64347216,0.0001917,2]
[358796247,1745439030151,1087.21,0.00018863,2]
[358796248,1745439032410,-61.05483051,0.0001917,2]
[358796249,1745439032420,-1034.39165965,0.00019181,2]
[358796281,1745439038355,-1016.40834035,0.00019181,2]
[358796282,1745439038365,-500.0,0.00019315,2]
[358796283,1745439038374,-287.4326,0.00019387,2]
[358796284,1745439038383,-785.1198088,0.00019461,2]
[358796285,1745439038393,-166.68,0.00019563,2]
[358796286,1745439038402,-146.38547805,0.00019615,2]
[358796287,1745439038413,-753.61452195,0.00019615,2]
[358796288,1745439038423,-500.0,0.00019616,2]
[358796289,1745439038433,-150.0,0.00019634,2]
[358796290,1745439038443,-500.0,0.00019699,2]
[358796291,1745439038455,-150.0,0.00019737,2]
[358796292,1745439038464,-150.0,0.00019738,2]
[358796293,1745439038474,-150.0,0.00019745,2]
[358796294,1745439038483,-150.0,0.00019768,2]
[358796295,1745439038493,-150.0,0.00019775,2]
[358796296,1745439038502,-150.0,0.00019787,2]
[358796297,1745439038513,-150.0,0.00019804,2]
[358796298,1745439038523,-500.0,0.00019808,2]
[358796299,1745439038532,-300.0,0.00019813,2]
[358796300,1745439038542,-150.0,0.00019814,2]
[358796301,1745439038552,-785.1198088,0.00019814,2]
[358796302,1745439038561,-150.0,0.00019815,2]
[358796303,1745439038571,-150.0,0.00019836,2]
[358796304,1745439038581,-440.0,0.00019863,2]
[358796305,1745439038590,-668.59274508,0.00019886,2]
[358796306,1745439038599,-1000.0,0.00019886,2]
[358796307,1745439038609,-1810.3253,0.00019886,2]
[358796308,1745439038619,-152.0,0.00019886,2]
[358796310,1745439038629,-252.51,0.00019887,2]
[358796312,1745439038639,-668.59274504,0.00019888,2]
[358796314,1745439038648,-668.65185757,0.00019888,2]
[358796316,1745439038657,-151.0,0.00019888,2]
[358796318,1745439038667,-668.59274504,0.00019889,2]
[358796320,1745439038676,-668.59274504,0.00019891,2]
[358796322,1745439038686,-150.0,0.00019891,2]